bitfinex/quotes_ETHUSD_20250725
["timestamp","ask_amount","ask_price","bid_price","bid_amount"]
[1753485828060,0.1344,3726.2,3726.1,0.9272]
[1753485828364,0.1344,3726.5,3726.2,2.6836455]
[1753485828667,0.1344,3726.5,3726.3,0.9272]
[1753485829265,0.1344,3726.5,3726.4,0.9272]
[1753485832575,0.1344,3726.5,3726.4,1.7452]
[1753485832734,1.2074,3727.4,3726.4,0.818]
[1753485833065,1.2074,3727.4,3726.4,2.44]
[1753485833066,0.7521,3726.9,3726.4,2.44]
[1753485833265,1.2074,3726.9,3726.5,0.4575]
[1753485833463,1.2074,3726.9,3726.5,0.9296]
[1753485833673,3.89060924,3726.9,3726.5,0.9296]
[1753485834284,3.89060924,3726.9,3726.6,2.44]
[1753485834485,1.2074,3726.9,3726.6,2.44]
[1753485834836,3.89060215,3726.9,3726.6,2.44]
[1753485835086,2.68326877,3726.8,3726.7,2.44]
[1753485835248,2.68338799,3726.7,3726.5,2.44]
[1753485835451,3.13868799,3726.7,3726.5,2.44]
[1753485835950,1.0846,3726.9,3726.5,2.44]
[1753485835951,3.13871115,3726.6,3726.5,2.44]
[1753485836278,2.68348316,3726.5,3726.4,2.44]
[1753485836582,0.4553,3726.6,3726.4,2.44]
[1753485836758,2.68336942,3726.7,3726.4,2.44]
[1753485836965,0.4553,3726.8,3726.2,0.4721]
[1753485837160,0.4553,3726.8,3726.4,2.44]
[1753485837462,0.4553,3726.8,3726.4,3.3696]
[1753485837679,0.7521,3726.9,3726.4,3.04533673]
[1753485837842,3.47914337,3727.2,3726.5,0.9296]
[1753485838045,0.7961,3727.2,3726.7,2.68329636]
[1753485838398,0.7961,3727.2,3726.8,0.9296]
[1753485840179,3.13841998,3727.1,3726.6,2.439]
[1753485840342,3.13841998,3727.1,3726.6,3.3686]
[1753485840542,3.13841998,3727.1,3726.6,2.9111]
[1753485840742,3.13841998,3727.1,3726.7,0.4575]
[1753485840979,0.7961,3727.2,3726.8,0.4575]
[1753485841177,3.47913647,3727.2,3726.8,0.9296]
[1753485841378,3.93443647,3727.2,3726.8,0.9296]
[1753485841778,3.93443647,3727.2,3726.6,5.1224062]
[1753485842074,1.2514,3727.2,3726.6,7.31314277]
[1753485842275,3.9343879,3727.2,3726.6,7.31314277]
[1753485842476,2.68305395,3727.1,3726.7,0.4575]
[1753485842679,0.1344,3726.9,3726.7,0.9296]
[1753485843489,0.1344,3726.9,3726.7,3.3686]
[1753485844662,0.1344,3726.9,3726.8,0.46297366]
[1753485844869,0.1344,3726.9,3726.8,1.39257366]
[1753485845377,0.1344,3726.9,3726.5,2.68348093]
[1753485845581,0.1344,3726.9,3726.6,3.3686]
[1753485845970,0.1344,3726.9,3726.7,0.9296]
[1753485846679,0.1344,3726.9,3726.8,0.4575]
[1753485847783,0.1344,3726.9,3726.7,2.9111]
[1753485848180,0.1344,3726.9,3726.7,3.3686]
[1753485848383,0.1344,3726.9,3726.8,0.9296]
[1753485848985,0.1344,3727.1,3726.9,2.68318638]
[1753485849281,0.1344,3727.3,3727.0,3.61272315]
[1753485849484,0.1344,3727.3,3727.1,3.3686]
[1753485849704,0.1344,3727.3,3727.2,0.60785551]
[1753485850058,0.1344,3727.3,3727.2,0.9296]
[1753485850893,2.81730719,3727.3,3727.2,0.9296]
[1753485851056,2.81730719,3727.3,3727.1,2.439]
[1753485851256,2.81730719,3727.3,3727.1,3.3686]
[1753485851458,2.81730719,3727.3,3727.1,2.439]
[1753485851856,2.68297918,3727.2,3727.1,2.439]
[1753485852074,2.68297918,3727.2,3726.9,0.9296]
[1753485852276,2.68297918,3727.2,3727.0,2.439]
[1753485852476,2.68305827,3727.1,3726.9,0.4721]
[1753485852792,2.81731341,3727.3,3727.0,3.3686]
[1753485852793,2.68299748,3727.2,3727.0,3.3686]
[1753485852983,2.68299748,3727.2,3727.0,2.439]
[1753485853171,2.68299748,3727.2,3727.1,0.9296]
[1753485854469,2.81733268,3727.3,3727.1,0.9296]
[1753485854688,2.81733268,3727.3,3727.2,0.9296]
[1753485855203,2.68297918,3727.2,3727.1,0.37508347]
[1753485855523,2.68297918,3727.2,3727.1,2.81408347]
[1753485855863,2.68297918,3727.2,3727.1,3.27158347]
[1753485856122,2.68297918,3727.2,3727.1,3.74368347]
[1753485858521,2.68297918,3727.2,3727.1,1.30468347]
[1753485859403,2.68297918,3727.2,3727.1,0.9296]
[1753485863505,2.6831132,3727.1,3726.8,0.1344]
[1753485863720,2.68312315,3727.0,3726.9,2.439]
[1753485864221,2.81752315,3727.0,3726.9,2.439]
[1753485864428,0.1344,3727.0,3726.9,4.1575]
[1753485864721,2.68305453,3727.1,3726.9,5.12765]
[1753485864926,2.68299918,3727.2,3726.9,4.19895]
[1753485865077,2.68299918,3727.2,3727.0,0.9287]
[1753485865285,2.68299918,3727.2,3727.0,3.3697]
[1753485865513,0.1344,3727.5,3727.1,0.4807]
[1753485865818,2.68297918,3727.2,3727.1,0.9287]
[1753485867230,0.4735,3727.5,3726.9,0.4807]
[1753485867439,2.68305116,3727.1,3727.0,2.44]
[1753485867732,2.68305116,3727.1,3726.6,0.4807]
[1753485867733,2.68326714,3726.8,3726.6,0.4807]
[1753485867899,2.68326714,3726.8,3726.7,3.3697]
[1753485868502,2.68321547,3726.9,3726.7,3.3697]
[1753485868680,2.68321547,3726.9,3726.7,2.441]
[1753485868885,2.68326714,3726.8,3726.7,2.441]
[1753485869488,2.68326714,3726.8,3726.7,3.3697]
[1753485871286,2.68326714,3726.8,3726.7,0.9287]
[1753485871483,2.68348316,3726.5,3726.4,4.2]
[1753485872740,2.68348316,3726.5,3726.4,4.6807]
[1753485873034,2.68348316,3726.5,3726.4,5.1287]
[1753485873603,2.68348316,3726.5,3726.4,0.9287]
[1753485874012,2.68355517,3726.4,3726.3,2.44]
[1753485874208,2.68355517,3726.4,3726.3,3.3687]
[1753485874439,2.6834928,3726.5,3726.3,3.3687]
[1753485874796,2.6834928,3726.5,3726.3,2.888]
[1753485875118,2.6834928,3726.5,3726.4,0.4807]
[1753485875320,2.6834928,3726.5,3726.3,2.888]
[1753485875526,2.6834928,3726.5,3726.3,3.3687]
[1753485875821,2.68355517,3726.4,3726.3,3.3687]
[1753485878536,2.68355517,3726.4,3726.3,0.9287]
[1753485879742,2.68362719,3726.3,3726.2,0.1344]
[1753485880035,2.68362719,3726.3,3725.6,4.2]
[1753485880036,2.68391529,3725.9,3725.8,1.0631]
[1753485880227,2.68391529,3725.9,3725.8,3.5021]
[1753485880811,2.68391529,3725.9,3725.8,3.5031]
[1753485881230,2.68391529,3725.9,3725.8,2.44]
[1753485881427,2.81823337,3726.1,3725.8,2.44]
[1753485881635,2.81823337,3726.1,3725.8,3.3687]
[1753485881941,2.68385971,3726.0,3725.8,0.9287]
[1753485882142,2.68385971,3726.0,3725.9,2.44]
[1753485883745,0.1344,3726.1,3725.9,2.44]
[1753485884821,0.1344,3726.1,3725.9,3.3687]
[1753485885348,0.1344,3726.1,3725.9,0.9287]
[1753485885647,0.1344,3726.1,3725.9,3.3687]
[1753485888415,0.1344,3726.1,3726.0,0.9287]
[1753485888621,0.1344,3726.1,3726.0,3.61254326]
[1753485889048,0.7508,3727.0,3726.3,2.68362512]
[1753485889252,0.1344,3726.5,3726.3,2.44]
[1753485889452,0.1344,3726.5,3726.4,0.9287]
[1753485889950,0.7508,3727.0,3726.5,2.68341536]
[1753485890132,0.1344,3726.8,3726.6,3.58961109]
[1753485890329,0.1344,3726.8,3726.6,2.68341109]
[1753485890524,0.1344,3726.8,3726.7,0.9062]
[1753485893640,0.7508,3727.3,3726.7,4.21685503]
[1753485893835,0.7508,3727.3,3726.7,2.68333914]
[1753485893836,0.1344,3726.9,3726.7,2.68333914]
[1753485894053,0.1344,3726.9,3726.6,2.439]
[1753485894054,0.1344,3726.9,3726.8,3.58946714]
[1753485894242,0.1344,3726.9,3726.8,0.9062]
[1753485894957,0.1344,3726.9,3726.8,3.58946714]
[1753485898161,0.1344,3726.9,3726.8,0.9062]
[1753485898339,0.1344,3726.9,3726.8,3.58946714]
[1753485899260,0.1344,3726.9,3726.8,3.3452]
[1753485899428,0.1344,3726.9,3726.8,6.02846714]
[1753485899629,0.1344,3726.9,3726.8,6.89965393]
[1753485900054,0.1344,3726.9,3726.8,4.21638679]
[1753485900439,0.1344,3726.9,3726.8,3.3452]
[1753485901664,0.1344,3726.9,3726.8,6.02846714]
[1753485902131,0.1344,3726.9,3726.8,3.3452]
[1753485906050,0.1344,3726.9,3726.8,0.9062]
[1753485906452,0.1344,3726.9,3726.3,5.1528]
[1753485906647,0.1344,3726.9,3726.5,0.4552]
[1753485906953,0.1344,3726.9,3726.5,3.58968216]
[1753485907150,0.1344,3726.9,3726.5,3.13448216]
[1753485907359,0.1344,3726.9,3726.6,0.4552]
[1753485907543,0.1344,3726.9,3726.7,2.439]
[1753485907862,0.1344,3726.9,3726.8,2.439]
[1753485908370,2.81764076,3726.9,3726.3,9.25790466]
[1753485908540,0.1344,3726.9,3726.4,5.12255403]
[1753485908743,0.4596,3726.8,3726.4,3.3452]
[1753485908940,0.4596,3726.8,3726.5,2.439]
[1753485909145,0.4596,3726.7,3726.2,4.2]
[1753485909340,0.1344,3726.5,3726.3,2.439]
[1753485909576,3.57989049,3726.5,3726.2,4.2]
[1753485909773,2.68362719,3726.3,3726.2,6.639]
[1753485909980,2.68362719,3726.3,3726.2,2.439]
[1753485910385,2.68362719,3726.3,3725.9,1.0406]
[1753485910676,0.1344,3726.3,3726.0,2.8942]
[1753485910974,0.1344,3726.3,3726.0,2.439]
[1753485911179,0.1344,3726.3,3726.1,0.9062]
[1753485911479,0.1344,3726.3,3726.1,3.3452]
[1753485914879,2.81804026,3726.3,3726.1,3.3452]
[1753485915086,0.1344,3726.3,3726.1,3.3452]
[1753485915778,0.1344,3726.3,3726.1,0.9062]
[1753485915997,0.1344,3726.3,3726.1,2.439]
[1753485916152,2.81803778,3726.3,3726.1,2.439]
[1753485920279,2.68369921,3726.2,3726.1,2.439]
[1753485920586,2.81803847,3726.3,3726.1,2.439]
[1753485920880,0.1344,3726.3,3726.0,2.439]
[1753485921113,2.81807901,3726.3,3726.0,3.3674]
[1753485921390,2.81807901,3726.3,3726.1,0.4627]
[1753485922090,2.81807901,3726.3,3726.1,0.9284]
[1753485922587,2.81807901,3726.3,3726.0,2.439]
[1753485922588,2.68379473,3726.1,3725.9,2.439]
[1753485922768,2.81819473,3726.1,3725.9,2.439]
[1753485922963,0.1344,3726.1,3725.8,2.439]
[1753485923169,2.81836151,3725.9,3725.8,2.439]
[1753485923568,2.81836151,3725.9,3725.7,0.9284]
[1753485923768,2.81836151,3725.9,3725.7,3.3674]
[1753485924092,2.81836028,3725.9,3725.7,3.3674]
[1753485924267,2.68398733,3725.8,3725.7,3.3674]
[1753485924971,2.81834207,3725.9,3725.7,3.3674]
[1753485925363,2.68398733,3725.8,3725.7,3.3674]
[1753485926271,2.8183425,3725.9,3725.7,3.3674]
[1753485926683,2.8183425,3725.9,3725.8,0.4627]
[1753485926980,2.68404752,3725.8,3725.7,2.439]
[1753485927382,2.68405937,3725.7,3725.6,0.4627]
[1753485927587,2.68405937,3725.7,3725.6,3.3674]
[1753485927968,2.68410557,3725.7,3725.6,2.439]
[1753485928164,2.81850557,3725.7,3725.6,2.439]
[1753485928565,2.81850557,3725.7,3725.5,2.439]
[1753485928892,2.81850557,3725.7,3725.5,2.9017]
[1753485929095,2.68420346,3725.5,3724.5,0.19842111]
[1753485929297,2.68443127,3725.2,3724.6,0.9284]
[1753485929497,2.68460865,3725.0,3724.7,0.9284]
[1753485929800,2.68464056,3724.9,3724.8,0.9284]
[1753485932196,2.68458437,3725.0,3724.8,0.9284]
[1753485932402,2.68463582,3724.9,3724.8,0.9284]
[1753485933874,2.68457766,3725.0,3724.8,0.9284]
[1753485934485,2.68463582,3724.9,3724.8,0.9284]
[1753485935000,2.68460792,3725.0,3724.8,0.9284]
[1753485935594,2.68451256,3725.1,3724.8,0.9284]
[1753485935801,2.6845699,3725.0,3724.8,0.9284]
[1753485935977,2.68463582,3724.9,3724.8,0.9284]
[1753485936606,2.68472413,3724.8,3724.5,2.443]
[1753485936796,2.68472413,3724.8,3724.5,3.56970631]
[1753485937109,2.68465871,3724.9,3724.5,3.10700631]
[1753485937276,2.68465871,3724.9,3724.6,0.9284]
[1753485937477,2.68457736,3725.0,3724.7,0.9284]
[1753485937676,2.68457736,3725.0,3724.8,0.4627]
[1753485937913,2.68457736,3725.0,3724.8,0.9284]
[1753485938478,3.16892077,3725.2,3724.8,0.9284]
[1753485939101,0.1344,3724.9,3724.8,0.9284]
[1753485940915,2.81903582,3724.9,3724.8,0.9284]
[1753485941213,2.81903582,3724.9,3724.6,0.9284]
[1753485941412,0.1344,3724.7,3724.6,0.9284]
[1753485942114,0.1344,3724.7,3724.2,2.68510864]
[1753485942309,0.1344,3724.7,3724.5,0.9284]
[1753485942799,0.1344,3724.7,3724.5,2.441]
[1753485942983,0.1344,3724.7,3724.6,0.9284]
[1753485943387,2.81925045,3724.7,3724.3,0.4627]
[1753485943579,2.81925045,3724.7,3724.5,0.9284]
[1753485943787,2.68485045,3724.7,3724.5,0.9284]
[1753485943987,0.1344,3724.6,3724.5,0.9284]
[1753485944607,0.1344,3724.6,3724.5,3.61332415]
[1753485944788,0.1344,3724.6,3724.5,1.55374618]
[1753485946136,0.1344,3724.6,3724.5,4.23867033]
[1753485946288,0.1344,3724.7,3724.5,6.68067033]
[1753485946489,0.1344,3724.7,3724.6,0.9284]
[1753485948023,0.4845,3725.4,3724.6,0.9284]
[1753485948024,0.8267,3725.5,3724.6,1.6922]
[1753485948206,0.1344,3725.0,3724.7,0.9284]
[1753485948402,0.1344,3725.0,3724.8,0.9284]
[1753485948807,0.1344,3725.0,3724.7,3.44264895]
[1753485949018,0.1344,3725.0,3724.9,0.9284]
[1753485949226,0.1344,3725.0,3724.9,3.61303582]
[1753485949399,0.1344,3725.0,3724.9,0.9284]
[1753485952814,0.1344,3725.0,3724.8,2.442]
[1753485953401,0.1344,3725.0,3724.7,0.9157]
[1753485953606,0.1344,3725.0,3724.8,2.441]
[1753485954214,2.68463926,3724.9,3724.7,2.441]
[1753485954545,0.1344,3724.8,3724.7,2.441]
[1753485955607,0.1344,3724.8,3724.6,2.441]
[1753485955821,0.1344,3724.8,3724.6,3.3567]
[1753485956248,0.1344,3724.8,3724.6,3.1067]
[1753485957658,0.1344,3724.8,3724.6,2.191]
[1753485957858,0.1344,3724.8,3724.7,0.9157]
[1753485959854,2.81916368,3724.8,3724.6,2.191]
[1753485960154,2.8191113,3724.8,3724.6,2.191]
[1753485960444,0.1344,3724.8,3724.6,2.191]
[1753485960648,0.1344,3724.8,3724.6,0.4772]
[1753485960823,0.1344,3724.8,3724.7,2.44]
[1753485961018,2.8191079,3724.8,3724.7,2.44]
[1753485961412,0.1344,3724.8,3724.7,2.44]
[1753485962217,0.1344,3724.8,3724.6,2.44]
[1753485962526,2.68494363,3724.5,3724.2,4.2]
[1753485962730,2.68494363,3724.5,3723.8,0.7544]
[1753485962731,2.68514333,3724.2,3723.9,0.4772]
[1753485963041,2.68514333,3724.2,3723.6,3.43994573]
[1753485963042,2.68538754,3723.9,3723.6,0.9157]
[1753485963360,2.81978754,3723.9,3723.7,2.44]
[1753485963711,0.1344,3723.9,3723.7,3.3557]
[1753485963910,2.81975674,3723.9,3723.7,0.4385]
[1753485964142,2.81975674,3723.9,3723.3,2.68576711]
[1753485964143,0.7963,3723.8,3723.3,0.1344]
[1753485964330,0.1344,3723.6,3723.4,2.441]
[1753485964653,2.6855878,3723.6,3723.4,0.9157]
[1753485964828,0.1344,3723.5,3723.4,0.9157]
[1753485967546,0.1344,3723.5,3723.3,2.441]
[1753485967729,0.1344,3723.5,3723.3,2.8795]
[1753485967931,0.1344,3723.5,3723.4,0.4772]
[1753485968554,0.1344,3723.5,3723.4,0.9157]
[1753485972664,0.1344,3723.5,3723.3,0.4772]
[1753485973230,0.1344,3723.5,3723.3,0.9157]
[1753485974065,0.1344,3723.5,3723.3,3.3567]
[1753485974476,0.1344,3723.5,3723.4,0.9157]
[1753485980079,0.1344,3723.5,3723.4,0.9157]
[1753485981258,0.1344,3723.5,3723.3,2.441]
[1753485981577,0.1344,3723.5,3723.3,3.3695]
[1753485981782,0.1344,3723.5,3723.4,0.9285]
[1753485982687,0.1344,3723.5,3723.4,3.61421735]
[1753485983181,0.1344,3723.5,3723.4,0.9285]
[1753485984578,0.1344,3723.5,3723.3,2.441]
[1753485985164,0.1344,3723.5,3723.3,2.9375]
[1753485986369,0.1344,3723.5,3723.3,2.441]
[1753485986956,0.1344,3723.5,3723.3,3.3695]
[1753485989887,0.1344,3723.5,3723.3,2.441]
[1753485990102,0.1344,3723.5,3723.4,0.9285]
[1753485991500,0.1344,3723.6,3723.4,3.61421735]
[1753485991699,0.1344,3723.6,3723.5,0.9285]
[1753485994573,0.1344,3723.6,3723.5,3.61414522]
[1753485995099,5.12615321,3724.2,3723.6,2.68556135]
[1753485995282,0.1344,3723.7,3723.6,2.441]
[1753485995596,0.1344,3723.7,3723.6,3.3695]
[1753486003515,0.1344,3723.7,3723.6,0.9285]
[1753486003808,0.1344,3723.7,3723.6,2.441]
[1753486004907,0.8184,3723.6,3722.6,0.4965]
[1753486005081,2.68601251,3723.0,3722.7,2.441]
[1753486005419,2.82033917,3723.1,3722.8,0.9285]
[1753486005780,2.68600848,3723.0,3722.8,1.13363353]
[1753486005984,0.1344,3722.9,3722.4,0.1344]
[1753486006192,0.1344,3722.7,3722.5,2.441]
[1753486006693,0.1344,3722.7,3722.4,0.9285]
[1753486007016,0.1344,3722.7,3722.5,3.3695]
[1753486007379,0.1344,3722.7,3722.5,2.873]
[1753486007716,0.1344,3722.7,3722.6,0.9285]
[1753486010121,0.1344,3722.7,3722.6,3.11829452]
[1753486010291,0.1344,3722.7,3722.6,3.17109452]
[1753486010625,0.1344,3722.7,3722.6,3.61269452]
[1753486010795,0.1344,3722.7,3722.6,0.9264]
[1753486011698,0.1344,3722.7,3722.5,2.441]
[1753486012019,0.1344,3722.7,3722.6,2.441]
[1753486012806,0.1344,3722.7,3722.6,2.9258]
[1753486013006,0.1344,3722.7,3722.6,3.3674]
[1753486015535,0.1344,3722.7,3722.6,0.9264]
[1753486017531,0.1344,3722.7,3722.5,2.9258]
[1753486017739,0.1344,3722.7,3722.5,3.3674]
[1753486019140,0.1344,3722.7,3722.5,2.8826]
[1753486019306,0.1344,3722.7,3722.6,0.9264]
[1753486020042,0.1344,3722.7,3722.3,0.9264]
[1753486020232,0.4515,3722.6,3721.9,1.7562]
[1753486020421,0.1344,3722.2,3721.9,0.9264]
[1753486020618,0.1344,3722.2,3722.0,2.441]
[1753486020808,0.1344,3722.2,3722.1,2.441]
[1753486021139,0.1344,3722.2,3721.9,0.9264]
[1753486021345,2.68644782,3722.4,3722.0,2.441]
[1753486021547,0.1344,3722.1,3722.0,2.441]
[1753486021711,0.7614,3722.0,3721.8,2.441]
[1753486022309,0.5859,3722.1,3721.8,2.441]
[1753486022310,0.1344,3722.1,3721.9,0.9264]
[1753486022509,0.7614,3723.3,3722.7,2.68617684]
[1753486022855,0.32024,3723.2,3722.8,3.61253231]
[1753486023014,0.1344,3722.9,3722.8,2.68613231]
[1753486023441,0.1344,3722.9,3722.8,2.6861502]
[1753486023643,2.441,3723.4,3722.9,2.68604234]
[1753486023945,0.1344,3723.1,3723.0,0.9264]
[1753486025550,0.1344,3723.1,3723.0,3.6124059]
[1753486026155,0.1344,3723.1,3723.0,0.9264]
[1753486026647,0.1344,3723.1,3722.8,6.05353247]
[1753486026948,0.1344,3723.1,3722.8,3.3674]
[1753486029050,0.1344,3723.1,3722.8,0.9264]
[1753486029251,0.1344,3723.1,3722.8,6.05353095]
[1753486029433,0.1344,3723.1,3722.8,5.56873095]
[1753486029621,0.1344,3723.1,3722.9,0.4848]
[1753486030345,0.1344,3723.1,3722.9,0.9264]
[1753486031129,0.1344,3723.1,3722.9,0.4416]
[1753486031354,0.1344,3723.1,3723.0,0.9264]
[1753486032943,0.1344,3723.1,3723.0,3.6124059]
[1753486033345,0.1344,3723.1,3723.0,0.9264]
[1753486034125,0.1344,3723.1,3722.8,2.441]
[1753486034456,0.1344,3722.9,3722.8,5.12713932]
[1753486034659,0.1344,3722.9,3722.8,5.56873932]
[1753486035018,0.1344,3722.9,3722.8,6.05353932]
[1753486037162,0.1344,3722.9,3722.8,6.0535502]
[1753486042170,0.1344,3722.9,3722.8,3.3674]
[1753486042663,0.1344,3722.9,3722.8,6.0535502]
[1753486043025,0.1344,3722.9,3722.8,3.6125502]
[1753486043244,0.1344,3722.9,3722.8,6.0535502]
[1753486046467,0.7614,3723.6,3723.1,2.68592431]
[1753486046959,0.7614,3723.6,3723.2,0.9035]
[1753486047165,0.7614,3723.6,3723.2,2.68581238]
[1753486047343,0.1344,3723.3,3723.2,2.68581238]
[1753486047543,0.1344,3723.3,3723.2,5.12681238]
[1753486047967,0.1344,3723.3,3723.2,6.03031238]
[1753486048467,0.1344,3723.3,3723.2,3.3445]
[1753486050041,0.1344,3723.3,3723.2,6.03036162]
[1753486053137,3.48399873,3724.0,3723.4,2.68568846]
[1753486053369,2.6854059,3723.9,3723.5,3.3445]
[1753486053575,3.98020753,3724.0,3723.6,0.9035]
[1753486053977,0.1344,3723.7,3723.6,0.9035]
[1753486054343,0.1344,3723.7,3723.6,3.5890731]
[1753486054677,3.6187,3723.6,3722.0,1e-08]
[1753486054984,0.7927,3721.6,3720.3,0.4732]
[1753486055140,2.687896,3720.4,3720.0,0.4732]
[1753486055482,2.82235706,3720.3,3720.0,0.4732]
[1753486055962,0.1344,3720.3,3720.0,0.4732]
[1753486056375,0.1344,3720.3,3719.7,6.11493329]
[1753486056547,0.1344,3720.3,3720.1,0.4732]
[1753486057183,0.1344,3720.3,3720.2,0.4732]
[1753486059349,0.1344,3720.3,3719.8,0.4303]
[1753486059350,0.1344,3720.3,3719.9,0.4732]
[1753486059588,2.82241511,3720.3,3719.9,0.4732]
[1753486059750,2.82241511,3720.3,3720.0,0.4732]
[1753486060180,2.82241511,3720.3,3720.1,0.4732]
[1753486060678,0.1344,3720.3,3720.1,0.4732]
[1753486060990,0.1344,3720.3,3720.2,0.4732]
[1753486061977,2.82235527,3720.3,3720.2,0.4732]
[1753486062466,0.1344,3720.3,3720.2,0.4732]
[1753486063476,2.82235527,3720.3,3720.2,0.4732]
[1753486063987,0.1344,3720.3,3720.2,0.4732]
[1753486065202,2.82235527,3720.3,3720.2,0.4732]
[1753486067405,2.68804766,3720.2,3719.9,0.4732]
[1753486067700,2.82237791,3720.3,3720.0,0.4732]
[1753486067881,2.68802756,3720.2,3720.1,0.4732]
[1753486069104,2.82238248,3720.3,3720.1,0.4732]
[1753486069792,2.82238248,3720.3,3720.2,0.4732]
[1753486073589,0.1344,3720.3,3720.2,0.4732]
[1753486073984,0.1344,3720.3,3720.2,0.9471]
[1753486077207,0.1344,3720.3,3719.8,2.68826737]
[1753486077406,0.1344,3720.3,3719.8,3.16216737]
[1753486077587,0.1344,3720.3,3720.1,0.4665]
[1753486077988,0.1344,3720.3,3720.2,0.4665]
[1753486078296,0.1344,3720.3,3719.9,0.4665]
[1753486078696,2.82237034,3720.3,3719.9,0.4665]
[1753486079008,4.00607034,3720.3,3719.8,4.2]
[1753486079304,0.4324,3720.2,3719.8,4.2]
[1753486079502,0.4324,3720.2,3719.8,4.6665]
[1753486079706,3.57368678,3720.3,3719.9,0.4665]
[1753486080078,3.57368678,3720.3,3720.0,0.4665]
[1753486080797,2.68802765,3720.2,3719.8,4.6739]
[1753486081175,2.68802765,3720.2,3719.9,0.4665]
[1753486081404,3.12042765,3720.2,3719.8,4.2]
[1753486081680,3.12042765,3720.2,3719.9,0.4665]
[1753486082498,3.57368327,3720.3,3720.0,0.4665]
[1753486083489,3.61219081,3720.2,3719.6,0.4665]
[1753486083694,0.1344,3719.9,3719.7,0.4665]
[1753486083886,0.1344,3719.9,3719.7,0.9404]
[1753486084091,0.1344,3719.9,3719.7,0.4739]
[1753486084291,0.1344,3719.9,3719.8,0.4665]
[1753486085882,2.8226443,3719.9,3719.8,0.4665]
[1753486086116,0.1344,3719.9,3719.8,0.4665]
[1753486087116,2.8226443,3719.9,3719.8,0.4665]
[1753486088928,2.8226443,3719.9,3719.8,0.71729504]
[1753486089724,2.8226443,3719.9,3719.8,0.25079504]
[1753486091420,5.3296443,3719.9,3719.8,0.25079504]
[1753486093126,6.22383044,3719.9,3719.8,0.25079504]
[1753486094317,2.68857941,3719.5,3719.3,0.4665]
[1753486094624,2.68857941,3719.5,3719.4,0.25084489]
[1753486095007,2.68857941,3719.5,3719.4,1.19124489]
[1753486095698,2.68857941,3719.5,3719.4,0.25084489]
[1753486095905,6.91189425,3719.5,3719.4,0.25084489]
[1753486096108,7.40359425,3719.5,3719.4,0.25084489]
[1753486098144,8.21979425,3719.5,3719.4,0.25084489]
[1753486101830,2.68925642,3718.5,3718.4,0.4288]
[1753486102132,2.6895198,3718.2,3718.0,0.4288]
[1753486102331,2.502,3718.1,3717.8,0.9004]
[1753486103053,2.502,3718.1,3717.9,0.9143]
[1753486103347,2.452,3718.1,3718.0,0.9143]
[1753486103551,2.501,3718.3,3718.0,0.9143]
[1753486103759,2.501,3718.3,3718.1,0.9143]
[1753486103928,2.501,3718.3,3718.2,0.9143]
[1753486105554,5.19040107,3718.3,3718.2,0.9143]
[1753486105759,2.501,3718.3,3718.2,0.9143]
[1753486107860,2.498,3718.6,3718.3,0.7639]
[1753486108042,2.498,3718.6,3718.4,0.18126]
[1753486108221,2.498,3718.6,3718.4,0.9143]
[1753486108421,2.498,3718.6,3718.5,0.9143]
[1753486109734,2.499,3718.7,3718.5,0.9143]
[1753486109944,2.499,3718.7,3718.6,0.9143]
[1753486112264,5.18811178,3718.7,3718.6,0.9143]
[1753486112465,0.7586,3719.3,3718.6,0.4855]
[1753486112625,2.6314,3719.2,3718.7,0.4288]
[1753486112960,5.18487678,3719.1,3718.8,0.9143]
[1753486113262,5.18487678,3719.1,3718.9,0.4855]
[1753486113827,5.18487678,3719.1,3719.0,0.25106508]
[1753486114452,6.07839408,3719.1,3719.0,0.25106508]
[1753486114653,7.78129408,3719.1,3719.0,0.25106508]
[1753486116665,6.85409408,3719.1,3719.0,0.25106508]
[1753486116962,7.78129408,3719.1,3719.0,0.25106508]
[1753486121401,7.30819408,3719.1,3719.0,0.25106508]
[1753486121574,2.68887678,3719.1,3719.0,0.73656508]
[1753486121871,5.18287678,3719.1,3719.0,0.73656508]
[1753486122034,5.18287678,3719.1,3719.0,1.16536508]
[1753486122242,5.18287678,3719.1,3719.0,0.73693824]
[1753486123967,5.18287678,3719.1,3719.0,0.25143824]
[1753486124678,5.18287678,3719.1,3719.0,0.73693824]
[1753486125179,5.18082256,3719.1,3719.0,1.16573824]
[1753486126484,5.17982256,3719.1,3719.0,0.73693824]
[1753486127276,5.17982256,3719.1,3719.0,1.16573824]
[1753486127785,2.491,3719.1,3719.0,1.16573824]
[1753486127987,5.17982256,3719.1,3719.0,1.16573824]
[1753486128150,2.491,3719.1,3719.0,1.16573824]
[1753486128656,5.17982256,3719.1,3719.0,1.16573824]
[1753486129085,5.17982256,3719.1,3719.0,0.73693824]
[1753486129652,5.17982256,3719.1,3719.0,0.73741995]
[1753486131411,2.68882256,3719.1,3719.0,0.73741995]
[1753486131568,5.17782256,3719.1,3719.0,0.73741995]
[1753486132583,5.17782256,3719.1,3719.0,1.16751995]
[1753486135199,5.17782256,3719.1,3719.0,0.73741995]
[1753486141326,5.17782256,3719.1,3719.0,0.25191995]
[1753486141479,7.24501285,3719.1,3719.0,0.25191995]
[1753486141677,7.70611285,3719.1,3719.0,0.25191995]
[1753486147401,5.96991285,3719.1,3719.0,0.25191995]
[1753486147699,5.16982256,3719.1,3719.0,1.14581995]
[1753486148078,2.68882256,3719.1,3719.0,0.71571995]
[1753486148282,2.481,3719.1,3719.0,1.14581995]
[1753486148821,5.16982256,3719.1,3719.0,1.14581995]
[1753486149518,2.481,3719.1,3719.0,1.14581995]
[1753486150322,5.16982256,3719.1,3719.0,1.14581995]
[1753486151685,5.16982256,3719.1,3719.0,0.25191995]
[1753486152003,2.68882256,3719.1,3719.0,0.71571995]